fUSD/lending_fUSD_20240330
["ID","MTS","AMOUNT","RATE_DAILY","PERIOD"]
[321053504,1711829442713,-500.0,0.00041095,4]
[321053505,1711829442722,-500.0,0.00041095,4]
[321053506,1711829442732,-500.0,0.00041095,4]
[321053507,1711829442741,-500.0,0.00041095,4]
[321053508,1711829442751,-635.75,0.00041095,4]
[321053509,1711829442760,-532.12690821,0.00041095,4]
[321053510,1711829442770,-500.0,0.00041095,4]
[321053511,1711829442781,-576.20045545,0.00041095,4]
[321053512,1711829442790,-500.0,0.00041095,4]
[321053513,1711829442799,-500.0,0.00041095,4]
[321053514,1711829442808,-500.0,0.00041095,4]
[321053515,1711829442817,-500.0,0.00041095,4]
[321053516,1711829442827,-284.78669277,0.00041095,4]
[321053517,1711829442836,-604.82,0.00041095,2]
[321053518,1711829442845,-500.0,0.00041095,4]
[321053519,1711829442856,-500.0,0.00041095,4]
[321053520,1711829442868,-500.0,0.00041095,4]
[321053521,1711829442878,-500.0,0.00041095,4]
[321053522,1711829442887,-500.0,0.00041095,4]
[321053523,1711829442899,-500.0,0.00041095,4]
[321053524,1711829442909,-500.0,0.00041095,4]
[321053525,1711829442918,-500.0,0.00041095,4]
[321053526,1711829442927,-500.0,0.00041095,4]
[321053527,1711829442938,-500.0,0.00041095,4]
[321053528,1711829442947,-500.0,0.00041095,4]
[321053529,1711829442956,-500.0,0.00041095,4]
[321053530,1711829442966,-535.19991498,0.00041095,4]
[321053531,1711829442976,-534.90521065,0.00041095,4]
[321053532,1711829442986,-201.64,0.00041095,4]
[321053533,1711829442995,-500.0,0.00041095,4]
[321053534,1711829443005,-500.0,0.00041095,4]
[321053535,1711829443014,-500.0,0.00041095,4]
[321053536,1711829443024,-500.0,0.00041095,4]
[321053537,1711829443035,-500.0,0.00041095,4]
[321053538,1711829443045,-500.0,0.00041095,4]
[321053539,1711829443054,-784.12,0.00041095,4]
[321053540,1711829443063,-500.0,0.00041095,4]
[321053541,1711829443074,-500.0,0.00041095,4]
[321053542,1711829443083,-500.0,0.00041095,4]
[321053543,1711829443092,-500.0,0.00041095,4]
[321053544,1711829443101,-500.0,0.00041095,4]
[321053545,1711829443110,-535.84,0.00041095,4]
[321053546,1711829443119,-500.0,0.00041095,4]
[321053547,1711829443128,-500.0,0.00041095,4]
[321053548,1711829443137,-500.0,0.00041095,4]
[321053549,1711829443147,-500.0,0.00041095,4]
[321053550,1711829443155,-500.0,0.00041095,4]
[321053551,1711829443164,-500.0,0.00041095,4]
[321053552,1711829443174,-500.0,0.00041095,4]
[321053553,1711829443183,-500.0,0.00041095,4]
[321053554,1711829443192,-500.0,0.00041095,4]
[321053555,1711829443202,-500.0,0.00041095,4]
[321053556,1711829443213,-500.0,0.00041095,4]
[321053557,1711829443223,-500.0,0.00041095,4]
[321053558,1711829443233,-500.0,0.00041095,4]
[321053559,1711829443243,-532.24738442,0.00041095,4]
[321053561,1711829443253,-500.0,0.00041095,4]
[321053563,1711829443262,-500.0,0.00041095,4]
[321053564,1711829443272,-500.0,0.00041095,4]
[321053565,1711829443281,-500.0,0.00041095,4]
[321053566,1711829443291,-500.0,0.00041095,4]
[321053567,1711829443300,-500.0,0.00041095,4]
[321053568,1711829443310,-500.0,0.00041095,4]
[321053569,1711829443319,-500.0,0.00041095,4]
[321053570,1711829443328,-500.0,0.00041095,4]
[321053571,1711829443337,-500.0,0.00041095,4]
[321053572,1711829443346,-500.0,0.00041095,4]
[321053573,1711829443355,-500.0,0.00041095,4]
[321053574,1711829443364,-1330.05,0.00041095,4]
[321053575,1711829443373,-500.0,0.00041095,4]
[321053576,1711829443383,-500.0,0.00041095,4]
[321053577,1711829443391,-500.0,0.00041095,4]
[321053579,1711829443401,-500.0,0.00041095,4]
[321053581,1711829443410,-500.0,0.00041095,4]
[321053583,1711829443420,-500.0,0.00041095,4]
[321053585,1711829443429,-500.0,0.00041095,4]
[321053587,1711829443438,-500.0,0.00041095,4]
[321053588,1711829443446,-500.0,0.00041095,4]
[321053589,1711829443455,-500.0,0.00041095,4]
[321053590,1711829443464,-500.0,0.00041095,4]
[321053591,1711829443474,-1198.46,0.00041095,4]
[321053592,1711829443483,-500.0,0.00041095,4]
[321053593,1711829443492,-518.54,0.00041095,4]
[321053594,1711829443501,-500.0,0.00041095,4]
[321053595,1711829443511,-500.0,0.00041095,4]
[321053596,1711829443520,-500.0,0.00041095,4]
[321053597,1711829443530,-500.0,0.00041095,4]
[321053598,1711829443540,-500.0,0.00041095,4]
[321053599,1711829443549,-500.0,0.00041095,4]
[321053600,1711829443558,-500.0,0.00041095,4]
[321053601,1711829443567,-500.0,0.00041095,4]
[321053602,1711829443577,-500.0,0.00041095,4]
[321053603,1711829443586,-500.0,0.00041095,4]
[321053604,1711829443597,-500.0,0.00041095,4]
[321053605,1711829443606,-555.21,0.00041095,4]
[321053606,1711829443616,-500.0,0.00041095,4]
[321053607,1711829443626,-500.0,0.00041095,4]
[321053608,1711829443635,-500.0,0.00041095,4]
[321053609,1711829443645,-500.0,0.00041095,4]
[321053610,1711829443654,-615.06431417,0.00041095,4]
[321053611,1711829443664,-500.0,0.00041095,4]
[321053612,1711829443673,-500.0,0.00041095,4]
[321053613,1711829443683,-500.0,0.00041095,4]
[321053614,1711829443692,-500.0,0.00041095,4]
[321053615,1711829443702,-500.0,0.00041095,4]
[321053616,1711829443711,-500.0,0.00041095,4]
[321053617,1711829443720,-500.0,0.00041095,4]
[321053618,1711829443730,-531.64289733,0.00041095,4]
[321053619,1711829443739,-500.0,0.00041095,4]
[321053620,1711829443749,-500.0,0.00041095,4]
[321053621,1711829443759,-500.0,0.00041095,4]
[321053622,1711829443769,-500.0,0.00041095,4]
[321053623,1711829443779,-500.0,0.00041095,4]
[321053624,1711829443792,-500.0,0.00041095,4]
[321053625,1711829443803,-500.0,0.00041095,4]
[321053626,1711829443813,-500.0,0.00041095,4]
[321053627,1711829443824,-557.77349484,0.00041095,4]
[321053628,1711829443834,-500.0,0.00041095,4]
[321053629,1711829443843,-538.41707181,0.00041095,4]
[321053630,1711829443854,-500.0,0.00041095,4]
[321053631,1711829443867,-535.9,0.00041095,4]
[321053632,1711829443877,-595.05,0.00041095,4]
[321053633,1711829443886,-623.92,0.00041095,4]
[321053634,1711829443897,-500.0,0.00041095,4]
[321053635,1711829443907,-309.59049641,0.00041095,4]
[321053636,1711829443916,-500.0,0.00041095,4]
[321053637,1711829443926,-500.0,0.00041095,4]
[321053638,1711829443936,-500.0,0.00041095,4]
[321053639,1711829443945,-500.0,0.00041095,4]
[321053640,1711829443955,-500.0,0.00041095,4]
[321053641,1711829443964,-500.0,0.00041095,4]
[321053642,1711829443973,-500.0,0.00041095,4]
[321053643,1711829443983,-500.0,0.00041095,4]
[321053644,1711829443993,-500.0,0.00041095,4]
[321053645,1711829444003,-500.0,0.00041095,4]
[321053647,1711829444012,-500.0,0.00041095,4]
[321053649,1711829444022,-500.0,0.00041095,4]
[321053651,1711829444033,-500.0,0.00041095,4]
[321053653,1711829444043,-500.0,0.00041095,4]
[321053656,1711829444052,-880.66,0.00041095,4]
[321053658,1711829444062,-500.0,0.00041095,4]
[321053660,1711829444072,-500.0,0.00041095,4]
[321053662,1711829444082,-608.5,0.00041095,4]
[321053664,1711829444093,-500.0,0.00041095,4]
[321053665,1711829444102,-745.9,0.00041095,4]
[321053667,1711829444112,-571.47221891,0.00041095,4]
[321053668,1711829444121,-500.0,0.00041095,4]
[321053669,1711829444130,-500.0,0.00041095,4]
[321053670,1711829444140,-659.93,0.00041095,4]
[321053671,1711829444149,-500.0,0.00041095,4]
[321053672,1711829444158,-500.0,0.00041095,4]
[321053673,1711829444168,-579.82322543,0.00041095,4]
[321053674,1711829444177,-802.93,0.00041095,4]
[321053675,1711829444187,-500.0,0.00041095,4]
[321053676,1711829444196,-500.0,0.00041095,4]
[321053677,1711829444206,-500.0,0.00041095,4]
[321053678,1711829444215,-3777.2,0.00041095,4]
[321053679,1711829444225,-945.0,0.00041095,4]
[321053680,1711829444235,-500.0,0.00041095,4]
[321053681,1711829444244,-1309.4,0.00041095,4]
[321053682,1711829444253,-5614.29,0.00041095,4]
[321053683,1711829444263,-500.0,0.00041095,4]
[321053684,1711829444272,-539.30201066,0.00041095,4]
[321053685,1711829444283,-893.86,0.00041095,4]
[321053686,1711829444292,-3647.61,0.00041095,4]
[321053687,1711829444301,-500.0,0.00041095,4]
[321053688,1711829444310,-500.0,0.00041095,4]
[321053689,1711829444318,-500.0,0.00041095,4]
[321053690,1711829444328,-2390.69,0.00041095,4]
[321053691,1711829444337,-500.0,0.00041095,4]
[321053692,1711829444346,-500.0,0.00041095,4]
[321053693,1711829444355,-500.0,0.00041095,4]
[321053694,1711829444365,-500.0,0.00041095,4]
[321053695,1711829444374,-500.0,0.00041095,4]
[321053696,1711829444383,-4766.61,0.00041095,4]
[321053697,1711829444392,-500.0,0.00041095,4]
[321053698,1711829444401,-781.76,0.00041095,4]
[321053699,1711829444410,-525.98185127,0.00041095,4]
[321053700,1711829444419,-500.0,0.00041095,4]
[321053701,1711829444428,-657.17,0.00041095,4]
[321053702,1711829444437,-500.0,0.00041095,4]
[321053703,1711829444446,-2559.25,0.00041095,4]
[321053704,1711829444455,-500.0,0.00041095,4]
[321053705,1711829444464,-500.0,0.00041095,4]
[321053706,1711829444473,-500.0,0.00041095,4]
[321053707,1711829444482,-528.95,0.00041095,4]
[321053708,1711829444492,-20104.36,0.00041095,4]
[321053709,1711829444502,-2000.8,0.00041095,4]
[321053710,1711829444513,-500.0,0.00041095,4]
[321053711,1711829444522,-500.0,0.00041095,4]
[321053712,1711829444532,-500.0,0.00041095,4]
[321053713,1711829444542,-500.0,0.00041095,4]
[321053714,1711829444552,-2332.54,0.00041095,4]
[321053715,1711829444561,-500.0,0.00041095,4]
[321053716,1711829444570,-682.07,0.00041095,4]
[321053717,1711829444580,-500.0,0.00041095,4]
[321053718,1711829444589,-500.0,0.00041095,4]
[321053719,1711829444598,-10479.41,0.00041095,4]
[321053720,1711829444607,-2628.95,0.00041095,4]
[321053721,1711829444617,-1829.1,0.00041095,4]
[321053722,1711829444626,-500.0,0.00041095,4]
[321053723,1711829444635,-500.0,0.00041095,4]
[321053724,1711829444645,-500.0,0.00041095,4]
[321053725,1711829444655,-500.0,0.00041095,4]
[321053726,1711829444664,-500.0,0.00041095,4]
[321053727,1711829444673,-2387.17,0.00041095,4]
[321053728,1711829444683,-500.0,0.00041095,4]
[321053729,1711829444692,-500.0,0.00041095,4]
[321053730,1711829444701,-500.0,0.00041095,4]
[321053731,1711829444711,-515.01341601,0.00041095,4]
[321053732,1711829444720,-1545.98,0.00041095,4]
[321053733,1711829444729,-500.0,0.00041095,4]
[321053734,1711829444739,-662.37,0.00041095,4]
[321053735,1711829444748,-3950.08,0.00041095,4]
[321053736,1711829444757,-3119.96,0.00041095,4]
[321053737,1711829444767,-500.0,0.00041095,4]
[321053738,1711829444776,-3824.46,0.00041095,4]
[321053739,1711829444786,-500.0,0.00041095,4]
[321053740,1711829444795,-516.20587755,0.00041095,4]
[321053741,1711829444804,-822.19,0.00041095,4]
[321053742,1711829444813,-500.0,0.00041095,4]
[321053743,1711829444822,-500.0,0.00041095,4]
[321053744,1711829444832,-1004.08,0.00041095,4]
[321053745,1711829444841,-500.0,0.00041095,4]
[321053746,1711829444854,-500.0,0.00041095,4]
[321053747,1711829444863,-500.0,0.00041095,4]
[321053748,1711829444873,-500.0,0.00041095,4]
[321053749,1711829444882,-500.0,0.00041095,4]
[321053750,1711829444890,-500.0,0.00041095,4]
[321053751,1711829444901,-500.0,0.00041095,4]
[321053752,1711829444910,-500.0,0.00041095,4]
[321053753,1711829444919,-500.0,0.00041095,4]
[321053754,1711829444928,-535.69,0.00041095,4]
[321053755,1711829444938,-155.98842,0.00041095,7]
[321053756,1711829444947,-1254.0,0.00041095,4]
[321053757,1711829444956,-500.0,0.00041095,4]
[321053758,1711829444965,-500.0,0.00041095,4]
[321053759,1711829444975,-1481.02,0.00041095,4]
[321053760,1711829444985,-3318.98,0.00041095,4]
[321053761,1711829444994,-518.85971878,0.00041095,4]
[321053762,1711829445003,-829.02,0.00041095,4]
[321053763,1711829445013,-547.51281423,0.00041095,4]
[321053764,1711829445022,-500.0,0.00041095,4]
[321053765,1711829445032,-500.0,0.00041095,4]
[321053766,1711829445042,-670.92,0.00041095,4]
[321053767,1711829445052,-2183.94,0.00041095,4]
[321053768,1711829445062,-1169.53,0.00041095,4]
[321053769,1711829445071,-500.0,0.00041095,4]
[321053770,1711829445082,-500.0,0.00041095,4]
[321053771,1711829445092,-500.0,0.00041095,4]
[321053772,1711829445102,-500.0,0.00041095,4]
[321053773,1711829445112,-5189.35,0.00041095,4]
[321053774,1711829445121,-600.35,0.00041095,4]
[321053775,1711829445132,-500.0,0.00041095,4]
[321053776,1711829445142,-719.45,0.00041095,4]
[321053777,1711829445151,-500.0,0.00041095,4]
[321053778,1711829445162,-740.59,0.00041095,4]
[321053779,1711829445172,-500.0,0.00041095,4]
[321053780,1711829445182,-7482.76,0.00041095,4]
[321053781,1711829445191,-566.16,0.00041095,4]
[321053782,1711829445201,-500.0,0.00041095,4]
[321053783,1711829445211,-500.0,0.00041095,4]
[321053784,1711829445220,-531.83408988,0.00041095,4]
[321053785,1711829445230,-2205.79,0.00041095,4]
[321053786,1711829445240,-610.84,0.00041095,4]
[321053787,1711829445250,-500.0,0.00041095,4]
[321053788,1711829445260,-508.57717925,0.00041095,4]
[321053789,1711829445269,-500.0,0.00041095,4]
[321053790,1711829445279,-500.0,0.00041095,4]
[321053791,1711829445289,-2359.1,0.00041095,4]
[321053792,1711829445298,-500.0,0.00041095,4]
[321053793,1711829445307,-735.43,0.00041095,4]
[321053794,1711829445317,-500.0,0.00041095,4]
[321053795,1711829445327,-500.0,0.00041095,4]
[321053796,1711829445336,-500.0,0.00041095,4]
[321053797,1711829445345,-500.0,0.00041095,4]
[321053798,1711829445354,-500.0,0.00041095,4]
[321053799,1711829445367,-7703.21,0.00041095,4]
[321053800,1711829445376,-500.0,0.00041095,4]
[321053801,1711829445385,-292.54951787,0.00041095,4]
[321053802,1711829445974,-207.45048213,0.00041095,4]
[321053803,1711829445984,-500.0,0.00041095,4]
[321053804,1711829445993,-100.18488095,0.00041095,4]
[321053805,1711829446005,-741.27723955,0.00041095,4]
[321053806,1711829446016,-216.0578795,0.00041095,4]
[321053807,1711829446027,-204.8309554,0.00041095,4]
[321053808,1711829446039,-298.52743707,0.00041095,4]
[321053809,1711829446051,-5.97160753,0.00041095,4]
[321053810,1711829446060,-356.71941759,0.00041095,4]
[321053838,1711829446437,-526.91640408,0.00041095,4]
[321053840,1711829446447,-700.36482592,0.00041095,4]
[321053848,1711829446825,-214.51535402,0.00040614,2]
[321053849,1711829446836,-214.51535402,0.00040614,2]
[321053850,1711829446846,-214.51535402,0.00040614,2]
[321053851,1711829446856,-214.51535402,0.00040614,2]
[321053852,1711829446867,-214.51535402,0.00040614,2]
[321053853,1711829446877,-214.51535402,0.00040614,2]
[321053854,1711829446886,-214.51535402,0.00040614,2]
[321053855,1711829446895,-214.51535402,0.00040614,2]
[321053856,1711829446904,-214.51535402,0.00040614,2]
[321053857,1711829446914,-214.51535402,0.00040614,2]
[321053858,1711829446924,-2.64379071,0.00040614,2]
[321053859,1711829457998,1516.76100954,0.00038777,2]
[321053860,1711829458022,2000.0,0.00038777,2]
[321053861,1711829458045,2000.0,0.00038777,2]
[321053862,1711829458070,2000.0,0.00038777,2]
[321053863,1711829458094,2000.0,0.00038777,2]
[321053864,1711829458117,2000.0,0.00038777,2]
[321053871,1711829713571,-887.5844693,0.00036883,4]
[321053872,1711829713593,-170.37734038,0.00036884,2]
[321053873,1711829713619,-942.03819032,0.00036982,2]
[321053874,1711829715585,-2000.0,0.00036982,2]
[321053875,1711829716899,-1732.10159339,0.00036982,2]
[321053876,1711829716920,-167.74501,0.00036984,4]
[321053877,1711829799182,100.15339661,0.00036984,2]
[321053911,1711830631703,-250.0,0.00033,3]
[321053912,1711830631714,-300.0,0.00035,3]
[321053913,1711830631724,-111.68277074,0.000376,2]
[321053914,1711830631775,-461.20722926,0.000376,2]
[321053915,1711830631785,-2000.0,0.00038,30]
[321053916,1711830631794,-150.0,0.00038776,4]
[321053917,1711830631804,-24233.49337368,0.00038777,2]
[321053918,1711830631814,-155.0,0.00038777,2]
[321053919,1711830631824,-2000.0,0.00039,30]
[321053920,1711830631834,-209.3,0.00039326,10]
[321053921,1711830631844,-14172.9,0.0003936,2]
[321053922,1711830631855,-667.43,0.00039364,2]
[321053923,1711830631865,-499.99,0.00039364,2]
[321053924,1711830631877,-640.0,0.00039397,2]
[321053925,1711830631887,-250.0,0.0003945,2]
[321053926,1711830631899,-4607.91,0.00039458,2]
[321053927,1711830631908,-390.71,0.00039471,2]
[321053928,1711830631918,-500.0,0.00039522,2]
[321053929,1711830631927,-165.73,0.0003954,2]
[321053930,1711830631937,-23900.0,0.00039551,2]
[321053931,1711830631946,-250.0,0.00039552,112]
[321053932,1711830631955,-171.78,0.0003956,15]
[321053933,1711830631965,-150.0,0.00039573,2]
[321053934,1711830631974,-280.08,0.0003961,2]
[321053935,1711830631986,-13180.67595606,0.00039662,2]
[321053936,1711830631997,-169.93,0.00039683,2]
[321053937,1711830632006,-360.0,0.00039689,2]
[321053938,1711830632015,-518.0,0.00039699,7]
[321053939,1711830632024,-545.0,0.00039699,7]
[321053940,1711830632034,-540.0,0.00039699,7]
[321053941,1711830632043,-150.43,0.00039702,120]
[321053942,1711830632052,-156.5,0.00039832,2]
[321053943,1711830632061,-572.89,0.00039864,2]
[321053944,1711830632070,-156.5,0.00039971,2]
[321053945,1711830632079,-18847.74,0.00039989,2]
[321053946,1711830632088,-2000.0,0.0004,30]
[321053947,1711830632098,-1091.392221,0.0004,41]
[321053948,1711830632107,-171.55940741,0.0004,2]
[321053949,1711830632116,-171.55940741,0.0004,2]
[321053950,1711830632128,-171.55940741,0.0004,2]
[321053951,1711830632137,-171.55940741,0.0004,2]
[321053952,1711830632147,-171.55940741,0.0004,2]
[321053953,1711830632156,-692.33706181,0.00040082,4]
[321053954,1711830632166,-171.55940741,0.00040083,2]
[321053955,1711830632175,-290.0,0.000401,3]
[321053956,1711830632184,-156.5,0.00040109,2]
[321053957,1711830632193,-156.5,0.00040248,2]
[321053958,1711830632203,-156.5,0.00040386,2]
[321053959,1711830632212,-210.6874,0.00040524,2]
[321053960,1711830632223,-156.5,0.00040524,2]
[321053961,1711830632235,-400.0,0.00040575,2]
[321053962,1711830632244,-400.0,0.000406,14]
[321053963,1711830632253,-171.55940741,0.00040624,2]
[321053964,1711830632262,-216.285403,0.00040639,2]
[321053965,1711830632272,-231.354962,0.00040639,2]
[321053966,1711830632281,-171.55940741,0.00040648,2]
[321053967,1711830632290,-518.0,0.00040658,7]
[321053968,1711830632300,-545.0,0.00040658,7]
[321053969,1711830632309,-540.0,0.00040658,7]
[321053970,1711830632318,-156.5,0.00040663,2]
[321053971,1711830632328,-171.55940741,0.00040677,2]
[321053972,1711830632337,-900.0,0.000407,14]
[321053973,1711830632346,-3193.6029206,0.000407,2]
[321053974,1711830632355,-7966.89445727,0.00040701,2]
[321053975,1711830632364,-171.55940741,0.00040724,2]
[321053976,1711830632375,-171.55940741,0.00040724,2]
[321053977,1711830632384,-171.55940741,0.00040724,2]
[321053978,1711830632394,-171.55940741,0.00040724,2]
[321053979,1711830632403,-171.55940741,0.00040724,2]
[321053980,1711830632412,-171.55940741,0.00040724,2]
[321053981,1711830632422,-171.55940741,0.00040724,2]
[321053982,1711830632431,-171.55940741,0.00040724,2]
[321053983,1711830632441,-171.55940741,0.00040724,2]
[321053984,1711830632451,-171.55940741,0.00040724,2]
[321053985,1711830632460,-171.55940741,0.00040724,2]
[321053986,1711830632471,-171.55940741,0.00040724,2]
[321053987,1711830632481,-171.55940741,0.00040724,2]
[321053988,1711830632491,-171.55940741,0.00040724,2]
[321053989,1711830632500,-171.55940741,0.00040724,2]
[321053990,1711830632509,-171.55940741,0.00040724,2]
[321053991,1711830632518,-171.55940741,0.00040724,2]
[321053992,1711830632528,-803.0,0.00040734,2]
[321053993,1711830632537,-605.0,0.00040734,2]
[321053994,1711830632547,-213.0,0.00040734,2]
[321053995,1711830632556,-150.0,0.00040734,2]
[321053996,1711830632565,-615.913,0.00040734,2]
[321053997,1711830632574,-962.0,0.00040734,2]
[321053998,1711830632583,-4777.0,0.00040734,2]
[321053999,1711830632592,-43018.0,0.00040734,2]
[321054000,1711830632601,-458.0,0.00040734,2]
[321054001,1711830632611,-248.025,0.00040734,2]
[321054002,1711830632620,-1300.0,0.000408,14]
[321054003,1711830632630,-156.5,0.00040801,2]
[321054004,1711830632640,-262.28,0.00040824,2]
[321054005,1711830632649,-150.11,0.00040843,2]
[321054006,1711830632659,-171.55940741,0.00040892,2]
[321054007,1711830632668,-303.32277497,0.000409,14]
[321054008,1711830632681,-1132.13006534,0.000409,14]
[321054009,1711830632694,-299.60140704,0.000409,14]
[321054010,1711830633043,-64.94575265,0.000409,14]
[321054011,1711830633053,-685.05424735,0.00040902,15]
[321054041,1711830637699,-518.0,0.00039726,7]
[321054042,1711830637708,-479.51801392,0.00040734,2]
[321054093,1711830639613,-518.0,0.00040685,7]
[321054095,1711830639623,-13.161,0.00040734,2]
[321054103,1711830639892,-255.69537,0.00040734,2]
[321054124,1711830642758,-248.89961608,0.00040734,2]
[321054125,1711830642768,-114.94575265,0.00040902,15]
[321054126,1711830642778,-200.0,0.00040902,20]
[321054127,1711830642787,-156.5,0.00040939,2]
[321054128,1711830642797,-1300.82384451,0.00040979,2]
[321054129,1711830642865,-800.17615549,0.00040979,2]
[321054130,1711830642875,-171.55940741,0.0004099,2]
[321054131,1711830642886,-171.55940741,0.0004099,2]
[321054132,1711830642896,-171.55940741,0.0004099,2]
[321054133,1711830642905,-171.55940741,0.0004099,2]
[321054134,1711830642915,-171.55940741,0.0004099,2]
[321054135,1711830642924,-165.48369383,0.00040995,2]
[321054136,1711830642933,-307.83149137,0.00040995,10]
[321054137,1711830642943,-399.7183,0.00040995,2]
[321054138,1711830642952,-7034.88043226,0.00040995,2]
[321054140,1711830645522,-373.5068174,0.00040995,2]
[321054141,1711830645634,-91.61275034,0.00040995,2]
[321054142,1711830645643,-2900.1130699,0.00041,2]
[321054143,1711830645657,-468.4031219,0.00041,2]
[321054144,1711830645666,-559.31045954,0.00041,4]
[321054145,1711830645675,-5004.64,0.00041,5]
[321054146,1711830645686,-5000.0,0.00041,2]
[321054147,1711830645695,-600.0,0.00041,42]
[321054148,1711830645705,-1000.0,0.00041068,2]
[321054149,1711830645714,-156.5,0.00041078,2]
[321054150,1711830645723,-157.033105,0.00041084,2]
[321054151,1711830645733,-157.033105,0.00041085,3]
[321054152,1711830645742,-208.34986372,0.00041085,2]
[321054153,1711830645752,-157.033105,0.00041086,2]
[321054154,1711830645762,-165.4836938,0.00041086,2]
[321054155,1711830645772,-157.033105,0.00041087,3]
[321054156,1711830645781,-157.033105,0.00041088,2]
[321054157,1711830645792,-157.033105,0.00041089,3]
[321054158,1711830645802,-157.033105,0.0004109,2]
[321054159,1711830645812,-157.033105,0.00041091,3]
[321054160,1711830645822,-157.033105,0.00041092,2]
[321054161,1711830645832,-633.74651492,0.00041092,2]
[321054162,1711830645842,-184.28060754,0.00041093,4]
[321054163,1711830645853,-263.65725635,0.00041093,4]
[321054164,1711830645863,-1886.06704094,0.00041093,4]
[321054165,1711830645872,-500.0,0.00041093,2]
[321054166,1711830645882,-447.88430443,0.00041093,2]
[321054167,1711830645892,-548.38561992,0.00041093,4]
[321054168,1711830645903,-477.97762676,0.00041093,4]
[321054169,1711830645913,-6664.2969713,0.00041094,4]
[321054170,1711830645923,-3868.50431528,0.00041094,2]
[321054171,1711830645933,-778.12509407,0.00041094,2]
[321054172,1711830645942,-5736.95337322,0.00041094,4]
[321054173,1711830645953,-5000.0,0.00041094,2]
[321054174,1711830645962,-500.0,0.00041095,2]
[321054175,1711830645972,-500.0,0.00041095,4]
[321054176,1711830645982,-570.22204899,0.00041095,4]
[321054177,1711830645991,-500.0,0.00041095,4]
[321054178,1711830646001,-500.0,0.00041095,4]
[321054179,1711830646011,-500.0,0.00041095,4]
[321054180,1711830646022,-500.0,0.00041095,4]
[321054181,1711830646031,-500.0,0.00041095,4]
[321054182,1711830646041,-500.0,0.00041095,4]
[321054183,1711830646051,-500.0,0.00041095,4]
[321054185,1711830646060,-500.0,0.00041095,4]
[321054186,1711830646070,-500.0,0.00041095,4]
[321054187,1711830646079,-500.0,0.00041095,4]
[321054188,1711830646089,-500.0,0.00041095,4]
[321054189,1711830646098,-500.0,0.00041095,4]
[321054190,1711830646108,-500.0,0.00041095,4]
[321054191,1711830646118,-500.0,0.00041095,4]
[321054192,1711830646128,-500.0,0.00041095,4]
[321054193,1711830646139,-500.0,0.00041095,4]
[321054194,1711830646149,-500.0,0.00041095,4]
[321054195,1711830646159,-80.11233848,0.00041095,4]
[321054202,1711830819677,800.0,0.00042016,31]
[321054238,1711831831783,-1500.0,0.00036984,2]
[321054239,1711831831793,-645.73,0.00037676,2]
[321054240,1711831831802,-170.37734038,0.0003783,2]
[321054241,1711831831812,-170.37734038,0.00038689,2]
[321054242,1711831831824,-269.01689433,0.00038749,30]
[321054243,1711831831833,-170.37734038,0.00039549,2]
[321054244,1711831831844,-195.35,0.00039601,2]
[321054245,1711831831853,-488.0,0.00039605,2]